bitfinex-derivatives/quotes_ETHF0:USTF0_20250624
["timestamp","ask_amount","ask_price","bid_price","bid_amount"]
[1750795750194,31.6356238,2433.5,2433.4,3.29]
[1750795750595,27.29758973,2433.5,2433.4,3.29]
[1750795750795,27.29758973,2433.5,2433.4,5.9065]
[1750795750995,1.69458973,2433.5,2433.4,5.9065]
[1750795751195,30.3541238,2433.5,2433.4,5.9065]
[1750795751598,30.3541238,2433.5,2433.4,3.29]
[1750795752700,30.3541238,2433.5,2433.2,3.2078]
[1750795752701,0.6572,2433.3,2433.2,3.2078]
[1750795752907,29.31473407,2433.3,2433.2,5.7078]
[1750795753100,30.3521838,2433.3,2433.2,5.7078]
[1750795754607,30.3521838,2433.3,2433.2,2.5]
[1750795754608,37.1481838,2433.3,2433.2,2.5]
[1750795754903,36.11073407,2433.3,2433.2,2.5]
[1750795755206,42.9745136,2433.3,2433.2,2.19177113]
[1750795755798,39.91597953,2433.3,2433.2,2.19177113]
[1750795758405,7.52097953,2433.3,2433.2,2.19177113]
[1750795758603,39.91297953,2433.3,2433.2,2.19177113]
[1750795760204,39.91297953,2433.3,2433.2,3.54707113]
[1750795760407,32.45777953,2433.3,2433.2,3.54707113]
[1750795760710,33.11497953,2433.3,2433.2,3.54707113]
[1750795761510,31.421,2433.3,2433.2,4.20429113]
[1750795761805,32.0782,2433.3,2433.2,3.54707113]
[1750795762407,32.0782,2433.3,2433.2,4.20429113]
[1750795762603,5.828,2433.3,2433.2,4.20429113]
[1750795762804,32.0772,2433.3,2433.2,3.54707113]
[1750795763312,33.11325726,2433.3,2433.2,3.54707113]
[1750795763704,33.11325726,2433.3,2433.2,4.20429113]
[1750795764101,32.0772,2433.3,2433.2,4.20429113]
[1750795764506,26.2492,2433.3,2433.2,4.20429113]
[1750795764909,27.28541049,2433.3,2433.2,4.20429113]
[1750795765109,26.3129515,2433.3,2433.2,3.54707113]
[1750795766311,27.2852477,2433.3,2433.2,3.54707113]
[1750795766703,27.28524683,2433.3,2433.2,3.54707113]
[1750795767310,27.28524683,2433.3,2433.2,2.19177113]
[1750795770410,33.11324683,2433.3,2433.2,2.19177113]
[1750795771223,33.17699833,2433.3,2433.2,2.19177113]
[1750795771421,7.58499833,2433.3,2433.2,2.19177113]
[1750795771719,7.58499833,2433.3,2433.2,6.88719113]
[1750795771720,32.50679833,2433.3,2433.2,6.88719113]
[1750795772317,32.44304683,2433.3,2433.2,6.88719113]
[1750795773512,32.44304683,2433.3,2433.2,6.22997113]
[1750795774223,33.10024683,2433.3,2433.2,6.22997113]
[1750795774720,33.09824683,2433.3,2433.2,6.22997113]
[1750795775022,33.09824683,2433.3,2433.2,6.88719113]
[1750795775214,32.44104683,2433.3,2433.2,6.88719113]
[1750795775918,0.65711,2433.7,2433.5,0.65714]
[1750795776120,0.65711,2433.7,2433.6,4.4655]
[1750795776322,0.65711,2433.7,2433.6,8.58472]
[1750795776521,26.23107,2433.8,2433.7,0.65709]
[1750795776726,26.23107,2433.8,2433.7,4.4701638]
[1750795776922,0.72855995,2434.0,2433.8,0.65705]
[1750795777220,0.65701,2434.0,2433.9,4.5959]
[1750795777416,2.45474562,2434.3,2433.9,9.5959]
[1750795777622,0.65692,2434.4,2434.2,3.2078]
[1750795777821,0.65692,2434.4,2434.3,3.36811]
[1750795777822,0.65691,2434.4,2434.3,3.36811]
[1750795778021,0.65691,2434.4,2434.3,4.33811]
[1750795778327,26.2269,2434.5,2434.3,3.6812]
[1750795778625,0.6569,2434.5,2434.4,0.65691]
[1750795778818,26.2269,2434.5,2434.4,4.72431]
[1750795779219,25.57,2434.5,2434.4,4.72431]
[1750795780220,26.22688,2434.5,2434.4,4.72431]
[1750795780828,25.57,2434.5,2434.4,4.72431]
[1750795781032,26.22688,2434.5,2434.4,4.0674]
[1750795781331,26.22688,2434.5,2434.4,1.39]
[1750795783927,32.99988,2434.5,2434.4,0.35395317]
[1750795784531,34.38898,2434.5,2434.4,0.35395317]
[1750795786529,34.38898,2434.5,2433.4,3.05853407]
[1750795786530,0.65704,2434.1,2433.6,0.65714]
[1750795786733,26.21308,2434.0,2433.6,6.44716]
[1750795786933,26.828,2434.0,2433.7,1.4004]
[1750795787130,29.88653407,2434.0,2433.7,6.4404]
[1750795787330,30.54359407,2434.0,2433.7,6.4404]
[1750795787534,30.54359407,2434.0,2433.8,1.4004]
[1750795787836,30.54360407,2434.0,2433.8,4.4504]
[1750795788039,0.65708,2433.9,2433.8,4.4504]
[1750795788835,0.65708,2433.9,2433.8,3.05]
[1750795789639,1.68365984,2433.9,2433.8,3.05]
[1750795793141,0.65708,2433.9,2433.8,3.05]
[1750795794141,1.68430041,2433.9,2433.8,3.05]
[1750795797039,7.51230041,2433.9,2433.8,3.05]
[1750795797645,6.48508,2433.9,2433.8,3.05]
[1750795797938,7.51307985,2433.9,2433.8,3.05]
[1750795801048,7.51307985,2433.9,2433.8,2.74184159]
[1750795801242,1.64284,2433.8,2433.2,3.2078]
[1750795801442,0.65721,2433.5,2433.3,1.355]
[1750795801740,25.54,2433.4,2433.3,4.845]
[1750795801937,25.54,2433.4,2433.3,5.50225]
[1750795802146,26.19722,2433.4,2433.3,4.845]
[1750795802346,25.54,2433.5,2433.3,5.50224]
[1750795802548,26.19721,2433.5,2433.4,1.355]
[1750795802750,26.19721,2433.5,2433.4,3.915]
[1750795803451,25.54,2433.5,2433.4,4.57222]
[1750795803658,26.19719,2433.5,2433.4,4.57222]
[1750795804046,25.54,2433.5,2433.4,4.57222]
[1750795804552,26.19719,2433.5,2433.4,4.57222]
[1750795805859,25.54,2433.5,2433.4,9.57222]
[1750795806156,26.19416,2433.7,2433.6,0.65716]
[1750795806359,26.19416,2433.7,2433.6,2.03]
[1750795806559,26.19416,2433.7,2433.6,42.83]
[1750795806759,26.19416,2433.7,2433.6,4.6615]
[1750795806953,27.22514986,2433.7,2433.6,4.6615]
[1750795807757,26.56798986,2433.7,2433.6,5.31866]
[1750795807965,27.22512986,2433.7,2433.6,4.6615]
[1750795808354,27.22512986,2433.7,2433.6,5.31866]
[1750795808556,1.03098986,2433.7,2433.6,5.31866]
[1750795808758,25.535,2433.8,2433.7,0.65714]
[1750795808965,1.03113523,2433.8,2433.7,2.13184]
[1750795809167,1.03113523,2433.8,2433.7,5.33964]
[1750795809664,0.65706,2434.1,2434.0,0.65706]
[1750795809963,1.03130214,2434.1,2434.0,0.65706]
[1750795810154,1.03130214,2434.1,2434.0,0.86706]
[1750795810754,1.03130214,2434.1,2434.0,2.17136]
[1750795810958,0.65696,2434.4,2434.3,0.65698]
[1750795811163,27.21815446,2434.5,2434.4,0.65695]
[1750795811361,27.21814882,2434.5,2434.4,1.92915]
[1750795811760,26.18693,2434.5,2434.4,1.2722]
[1750795811955,27.21797614,2434.5,2434.4,1.2722]
[1750795812863,27.21797614,2434.5,2434.4,2.5765]
[1750795813063,27.21797614,2434.5,2434.4,3.23345]
[1750795813656,26.56104614,2434.5,2434.4,3.23345]
[1750795813857,27.21796614,2434.5,2434.4,3.23345]
[1750795814366,27.21796614,2434.5,2434.4,2.5765]
[1750795817260,30.26950021,2434.5,2434.4,2.5765]
[1750795818568,30.26550021,2434.5,2434.4,2.5765]
[1750795820068,30.32925171,2434.5,2434.4,2.5765]
[1750795824468,29.67233171,2434.5,2434.1,1.2238]
[1750795824769,0.657,2434.2,2434.1,2.53]
[1750795824959,33.94778371,2434.2,2434.1,2.53]
[1750795825265,0.65714,2433.7,2433.6,4.16]
[1750795825468,26.16814,2433.7,2433.6,3.93]
[1750795826270,27.19708286,2433.7,2433.6,3.93]
[1750795827567,28.60778286,2433.7,2433.2,6.732]
[1750795827870,0.65725,2433.3,2433.2,3.66]
[1750795828072,26.16525,2433.3,2433.2,3.66]
[1750795829874,26.16525,2433.3,2433.2,5.0321]
[1750795832071,26.16525,2433.3,2433.2,3.66]
[1750795833567,28.444798,2433.3,2433.2,3.66]
[1750795833875,35.662598,2433.3,2433.2,3.66]
[1750795834075,35.662598,2433.3,2432.4,45.1993]
[1750795834076,0.65746,2432.5,2432.4,45.1993]
[1750795834380,25.506,2432.5,2432.4,8.20467999]
[1750795834574,26.16346,2432.5,2432.4,8.20467999]
[1750795835173,26.16346,2432.5,2432.4,5.86]
[1750795835573,26.16346,2432.5,2432.4,7.2473]
[1750795836978,25.506,2432.5,2432.4,7.2473]
[1750795837379,26.16346,2432.5,2432.4,7.2473]
[1750795837575,26.16346,2432.5,2432.4,5.86]
[1750795837881,32.89746,2432.5,2432.4,5.86]
[1750795838674,34.30946,2432.5,2432.4,5.86]
[1750795838869,0.65758,2432.1,2431.9,42.1466]
[1750795839076,25.507,2432.0,2431.9,46.3166]
[1750795839477,25.506,2432.0,2431.9,46.3166]
[1750795839673,25.506,2432.0,2431.9,46.97421]
[1750795839870,25.506,2432.0,2431.9,46.3166]
[1750795840073,25.506,2432.0,2431.9,46.97422]
[1750795840682,25.506,2432.2,2432.0,0.65759]
[1750795840978,25.506,2432.2,2432.1,1.3155]
[1750795841284,25.508,2432.2,2432.1,3.93307]
[1750795841469,0.65744,2432.6,2432.3,0.6575]
[1750795841677,3.2078,2432.7,2432.4,3.7007]
[1750795841869,3.86522,2432.7,2432.4,6.62818]
[1750795842175,3.2078,2432.7,2432.5,0.65745]
[1750795842481,3.86521,2432.7,2432.6,1.3155]
[1750795842680,3.86521,2432.7,2432.6,2.1155]
[1750795843475,0.65741,2432.7,2432.6,2.1155]
[1750795843677,25.507,2432.8,2432.6,0.8]
[1750795843879,26.1644,2432.8,2432.6,0.8]
[1750795844078,26.1644,2432.8,2432.7,1.3894]
[1750795845280,25.507,2432.8,2432.7,1.3894]
[1750795845676,26.16438,2432.8,2432.7,1.3894]
[1750795846582,25.507,2432.8,2432.7,1.3894]
[1750795846884,25.507,2432.8,2432.7,2.04681]
[1750795847473,25.507,2432.8,2432.7,3.19681]
[1750795847976,25.503,2432.9,2432.8,0.65738]
[1750795848171,25.503,2432.9,2432.8,4.88928]
[1750795848383,25.503,2432.9,2432.8,4.2319]
[1750795848771,25.503,2432.9,2432.8,5.4909]
[1750795849183,26.16035,2432.9,2432.8,5.4909]
[1750795850885,25.503,2432.9,2432.8,2.89]
[1750795851087,26.16035,2432.9,2432.8,2.89]
[1750795852382,0.65735,2432.9,2432.8,2.89]
[1750795852590,25.499,2432.9,2432.8,2.89]
[1750795852888,0.65735,2432.9,2432.8,2.89]
[1750795853191,26.15635,2432.9,2432.8,2.89]
[1750795854586,27.25109082,2432.9,2432.8,2.89]
[1750795854787,27.25109082,2432.9,2432.8,4.0529]
[1750795855487,27.18733932,2432.9,2432.8,4.0529]
[1750795857688,27.18733932,2432.9,2432.8,5.4031]
[1750795857885,27.18838881,2432.9,2432.8,5.4031]
[1750795858091,1.68938881,2432.9,2432.8,5.4031]
[1750795858393,27.18438881,2432.9,2432.8,5.4031]
[1750795859892,1.68938881,2432.9,2432.8,5.4031]
[1750795860089,27.18338881,2432.9,2432.8,5.4031]
[1750795860283,0.65735,2433.0,2432.8,5.4031]
[1750795860482,0.65735,2433.0,2432.9,1.1539]
[1750795860685,0.65735,2433.0,2432.9,4.8338]
[1750795860884,1.69005111,2433.0,2432.9,3.6799]
[1750795861080,1.69005111,2433.0,2432.9,2.31]
[1750795861686,2.94575111,2433.0,2432.9,2.31]
[1750795861987,1.69005111,2433.0,2432.9,2.31]
[1750795862189,1.69005111,2433.0,2432.9,3.6409]
[1750795863487,1.03270111,2433.0,2432.9,4.29825]
[1750795863687,0.65733,2433.0,2432.9,3.6409]
[1750795864496,0.65732,2433.1,2432.9,3.6409]
[1750795864694,0.65733,2433.0,2432.9,3.6409]
[1750795867090,0.65732,2433.1,2432.9,4.29825]
[1750795867292,0.65733,2433.0,2432.9,4.29825]
[1750795867492,0.65733,2433.0,2432.9,3.6409]
[1750795867891,0.65732,2433.1,2432.9,4.29825]
[1750795868194,0.65733,2433.0,2432.9,4.29825]
[1750795869691,0.65732,2433.1,2432.9,4.29825]
[1750795869888,26.14329,2433.2,2433.0,2.06813]
[1750795870090,0.65729,2433.2,2433.1,1.4108]
[1750795870292,1.6878855,2433.2,2433.1,3.9608]
[1750795870596,1.6878855,2433.2,2433.1,4.6181]
[1750795871098,1.6878855,2433.2,2433.1,3.9608]
[1750795871292,4.75265535,2433.2,2433.1,2.55]
[1750795871489,1.6878855,2433.2,2433.1,2.55]
[1750795872388,1.6878855,2433.2,2433.1,3.9114]
[1750795874291,4.75265535,2433.2,2433.1,3.9114]
[1750795874486,4.75265535,2433.2,2432.9,40.8]
[1750795874487,10.58065535,2433.2,2432.6,1.1539]
[1750795874691,0.65741,2432.7,2432.6,4.8239]
[1750795874891,0.65741,2432.7,2432.6,3.67]
[1750795874892,3.72217985,2432.7,2432.6,3.67]
[1750795875095,4.75351758,2432.7,2432.6,3.67]
[1750795875294,5.89761758,2432.7,2432.6,3.67]
[1750795879001,26.50533773,2432.7,2432.6,3.67]
[1750795879599,26.50533773,2432.7,2432.6,5.0355]
[1750795880003,27.16274773,2432.7,2432.6,5.0355]
[1750795882303,0.65736,2432.9,2432.7,0.65739]
[1750795882502,26.12835,2432.9,2432.8,2.6294]
[1750795882703,27.15988608,2432.9,2432.8,4.4994]
[1750795886514,27.15988608,2432.9,2432.8,1.87]
[1750795886710,30.22465593,2432.9,2432.8,1.87]
[1750795891105,31.33035593,2432.9,2432.8,1.87]
[1750795892513,28.26558608,2432.9,2432.8,1.87]
[1750795892704,27.23405,2432.9,2432.8,1.87]
[1750795893811,28.26321544,2432.9,2432.8,1.87]
[1750795897612,27.14151544,2432.9,2432.8,1.87]
[1750795898009,27.14151544,2432.9,2432.8,3.2168]
[1750795898202,1.02916544,2432.9,2432.8,3.87418]
[1750795898408,0.65728,2433.2,2433.0,0.65731]
[1750795898615,0.65728,2433.2,2433.1,1.3263]
[1750795898814,1.68648729,2433.2,2433.1,2.1463]
[1750795904013,26.10326,2433.3,2433.1,2.8036]
[1750795904315,1.68613792,2433.2,2433.1,0.82]
[1750795904521,2.78143792,2433.2,2433.1,0.82]
[1750795905219,2.78143792,2433.2,2433.1,0.51175356]
[1750795905420,0.6574,2432.8,2432.6,7.8677]
[1750795905717,0.6574,2432.8,2432.7,1.1284]
[1750795905917,26.10337,2432.9,2432.7,3.9384]
[1750795906116,0.65738,2432.8,2432.7,3.9384]
[1750795906823,1.68632565,2432.8,2432.7,3.9384]
[1750795907518,1.68632565,2432.8,2432.7,4.59581]
[1750795907721,1.02894565,2432.8,2432.7,4.59581]
[1750795907920,25.446,2432.9,2432.8,0.65738]
[1750795908214,26.47499793,2432.9,2432.8,2.64738]
[1750795908422,27.13234793,2432.9,2432.8,2.64738]
[1750795909123,27.13234793,2432.9,2432.8,1.99]
[1750795910119,27.13234793,2432.9,2432.8,2.64738]
[1750795910322,26.47499793,2432.9,2432.8,2.64738]
[1750795911420,27.13234793,2432.9,2432.8,2.64738]
[1750795911822,27.13234793,2432.9,2432.8,1.99]
[1750795912822,26.47499793,2432.9,2432.8,2.64738]
[1750795913022,25.446,2432.9,2432.8,5.71214985]
[1750795913926,0.6572,2433.5,2433.4,0.6572]
[1750795914119,0.65719,2433.5,2433.4,0.6572]
[1750795914426,1.02917068,2433.5,2433.4,0.6572]
[1750795915426,1.02917068,2433.5,2433.4,2.0672]
[1750795916920,1.02917068,2433.5,2433.4,3.3759]
[1750795917116,1.1093,2433.9,2433.8,0.65711]
[1750795917323,27.11501825,2433.9,2433.8,0.65711]
[1750795917923,1.02792825,2433.9,2433.8,1.68711]
[1750795918230,29.29479,2434.3,2434.1,0.65702]
[1750795918432,1.02672133,2434.2,2434.1,0.65702]
[1750795918734,1.68372133,2434.2,2434.1,0.65702]
[1750795919032,0.65703,2434.1,2434.0,0.65704]
[1750795919331,0.65703,2434.1,2434.0,1.34704]
[1750795919928,0.65703,2434.1,2434.0,0.69]
[1750795920333,0.65703,2434.1,2434.0,1.34706]
[1750795920630,0.65703,2434.1,2434.0,0.69]
[1750795921333,1.6825402,2434.1,2434.0,0.69]
[1750795922929,0.65703,2434.1,2434.0,0.69]
[1750795928533,0.7207815,2434.1,2434.0,0.69]
[1750795928930,3.78555135,2434.1,2434.0,0.69]
[1750795929122,0.7207815,2434.1,2434.0,0.69]
[1750795929729,0.65703,2434.1,2434.0,0.69]
[1750795929929,0.65703,2434.1,2434.0,1.34706]
[1750795930128,3.72179985,2434.1,2434.0,0.69]
[1750795930330,4.74746709,2434.1,2434.0,0.69]
[1750795930634,4.81121859,2434.1,2434.0,0.69]
[1750795930827,3.78555135,2434.1,2434.0,0.69]
[1750795931229,0.7207815,2434.1,2434.0,0.69]
[1750795931634,0.65703,2434.1,2434.0,0.69]
[1750795932736,0.65703,2434.1,2434.0,1.34706]
[1750795933238,25.48051547,2434.5,2434.2,0.657]
[1750795933439,0.65697,2434.3,2434.2,4.087]
[1750795933935,0.65696,2434.4,2434.3,0.65696]
[1750795934137,0.65696,2434.4,2434.3,3.11696]
[1750795934338,1.0659,2434.7,2434.3,5.52476985]
[1750795934546,0.65691,2434.6,2434.5,0.65691]
[1750795934737,0.65691,2434.6,2434.5,1.16]
[1750795938533,8.86471,2434.6,2434.5,1.16]
[1750795938734,1.64238,2434.4,2434.0,6.677]
[1750795938934,0.65703,2434.1,2434.0,3.27706]
[1750795939129,0.65703,2434.1,2434.0,2.62]
[1750795939841,29.12079985,2434.1,2434.0,2.62]
[1750795940142,40.97432438,2434.1,2434.0,1.7234]
[1750795943942,35.97432438,2434.1,2434.0,1.7234]
[1750795944747,30.14632438,2434.1,2434.0,1.7234]
[1750795947243,0.65716,2433.6,2433.5,3.2078]
[1750795947546,0.65716,2433.6,2433.5,6.6977]
[1750795947946,26.05015,2433.7,2433.5,7.35487]
[1750795948138,26.05015,2433.7,2433.6,1.4099]
[1750795948339,26.05015,2433.7,2433.6,2.8999]
[1750795951144,30.28643129,2433.7,2433.6,1.49]
[1750795951539,31.36603129,2433.7,2433.6,1.49]
[1750795951942,30.28643129,2433.7,2433.6,1.49]
[1750795952140,1.68563129,2433.7,2433.6,1.49]
[1750795952340,27.07563129,2433.7,2433.6,1.49]
[1750795952540,26.04715,2433.7,2433.6,1.49]
[1750795952736,4.3254,2434.1,2433.6,4.0316]
[1750795952940,4.3254,2434.1,2433.8,0.65711]
[1750795952941,0.6571,2433.9,2433.8,0.65711]
[1750795953255,0.6571,2433.9,2433.8,3.2756]
[1750795954349,0.6571,2433.9,2433.8,3.93271]
[1750795955255,26.04707,2434.0,2433.9,0.65708]
[1750795955447,1.68579292,2434.0,2433.9,2.6744]
[1750795955751,0.65707,2434.0,2433.9,2.6744]
[1750795956451,1.68580274,2434.0,2433.9,1.27]
[1750795956747,2.83730274,2434.0,2433.9,1.27]
[1750795957657,0.65716,2433.6,2433.5,3.2078]
[1750795957844,0.65716,2433.6,2433.5,5.0678]
[1750795958351,0.65716,2433.6,2433.5,6.4341]
[1750795958652,0.65716,2433.6,2433.5,1.86]
[1750795958847,4.75082125,2433.6,2433.5,1.86]
[1750795959159,5.92442125,2433.6,2433.5,1.86]
[1750795960050,2.8596514,2433.6,2433.5,1.86]
[1750795960250,2.8596514,2433.6,2433.5,3.2579]
[1750795961045,5.92442125,2433.6,2433.5,3.2579]
[1750795961244,5.92442125,2433.6,2433.5,1.86]
[1750795961851,10.92442125,2433.6,2433.5,1.86]
[1750795962054,12.32212125,2433.6,2433.5,1.86]
[1750795962441,12.3217425,2433.6,2433.5,1.86]
[1750795962646,0.65735,2432.9,2432.8,2.2394]
[1750795962854,0.65735,2432.9,2432.8,7.3594]
[1750795963044,3.72211985,2432.9,2432.8,5.12]
[1750795963246,0.65735,2432.9,2432.8,5.12]
[1750795964850,26.04034,2433.0,2432.8,5.12]
[1750795965053,3.2078,2433.3,2432.9,1.3499]
[1750795965248,26.41201957,2433.2,2432.9,4.069]
[1750795965442,0.6573,2433.1,2433.0,1.0967]
[1750795965647,0.6573,2433.1,2433.0,2.0967]
[1750795968554,1.68716327,2433.1,2433.0,2.0967]
[1750795969057,1.02986327,2433.1,2433.0,2.0967]
[1750795969253,1.68716327,2433.1,2433.0,2.0967]
[1750795969453,1.6872347,2433.1,2433.0,2.0967]
[1750795970054,1.6872347,2433.1,2433.0,2.75403]
[1750795971155,0.6573,2433.1,2433.0,2.75403]
[1750795972151,0.6573,2433.1,2433.0,2.0967]
[1750795972453,0.6573,2433.1,2433.0,2.75403]
[1750795972751,0.6573,2433.1,2433.0,2.0967]
[1750795973453,0.6573,2433.1,2433.0,1.0]
[1750795974955,0.6573,2433.1,2433.0,1.65733]
[1750795975456,0.6573,2433.1,2433.0,1.0]
[1750795975754,0.6573,2433.1,2433.0,1.65733]
[1750795977456,0.6573,2433.1,2433.0,1.0]
[1750795978158,26.04128,2433.2,2433.0,1.0]
[1750795978355,26.04128,2433.2,2433.1,1.3524]
[1750795978560,26.04128,2433.2,2433.1,1.6024]
[1750795979261,26.04128,2433.2,2433.1,2.2597]
[1750795980263,26.04128,2433.2,2433.1,1.6024]
[1750795980956,27.07122515,2433.2,2433.1,1.6024]
[1750795983253,27.07122515,2433.2,2433.1,2.2597]
[1750795983455,27.07122515,2433.2,2433.1,1.6024]
[1750795984064,27.07122515,2433.2,2433.1,2.2597]
[1750795984256,27.07121515,2433.2,2433.1,1.6024]
[1750795984456,27.13496665,2433.2,2433.1,1.6024]
[1750795986266,30.19955297,2433.2,2433.1,1.6024]
[1750795990773,27.13496665,2433.2,2433.1,1.6024]
[1750795991564,27.07121515,2433.2,2433.1,1.6024]
[1750795992863,27.04821515,2433.2,2433.1,2.7608]
[1750795993067,1.68721515,2433.2,2433.1,3.4181]
[1750795993373,1.68721515,2433.2,2433.1,2.7608]
[1750795993761,1.68721515,2433.2,2433.1,3.4181]
[1750795995667,1.68721515,2433.2,2433.1,2.7608]
[1750795995865,30.10980147,2433.2,2433.1,0.25]
[1750795997871,27.04521515,2433.2,2433.1,0.25]
[1750795999872,27.04521515,2433.2,2433.1,1.6442]
[1750796004272,30.10980147,2433.2,2433.1,0.25]
[1750796004679,30.11362739,2433.2,2433.1,0.25]
[1750796006972,35.94162739,2433.2,2433.1,0.25]
[1750796007278,38.40165978,2433.2,2433.1,0.0034219]
[1750796007484,39.77535978,2433.2,2433.1,0.0034219]
[1750796008167,42.31532739,2433.2,2433.1,0.0034219]
[1750796008686,42.37907889,2433.2,2433.1,0.0034219]
[1750796009484,37.37907889,2433.2,2433.1,0.0034219]
[1750796009684,37.31532739,2433.2,2433.1,0.0034219]
[1750796011470,37.31532739,2433.2,2432.4,3.2078]
[1750796011471,1.6433,2433.1,2432.4,3.2078]
[1750796011676,3.72204632,2432.5,2432.4,6.1078]
[1750796011873,10.58381739,2432.5,2432.4,2.9]
[1750796012373,18.04384978,2432.5,2432.4,2.9]
[1750796012582,0.65765,2431.8,2431.7,4.3693]
[1750796012770,0.65765,2431.8,2431.7,11.0637]
[1750796012972,30.10172902,2431.8,2431.7,9.9022]
[1750796013182,30.10172902,2431.8,2431.7,5.32]
[1750796013776,25.343,2431.8,2431.7,6.6944]
[1750796013981,25.343,2431.8,2431.7,7.35208]
[1750796014184,25.342,2431.9,2431.8,0.65765]
[1750796014491,25.342,2431.9,2431.8,6.39695]
[1750796015382,25.345,2432.1,2432.0,0.65759]
[1750796015777,0.65754,2432.2,2432.0,2.00759]
[1750796015973,0.65754,2432.2,2432.1,1.3512]
[1750796016176,1.69223769,2432.2,2432.1,1.9012]
[1750796017186,1.03469769,2432.2,2432.1,2.55877]
[1750796017387,0.65754,2432.2,2432.1,1.9012]
[1750796017778,1.69150084,2432.2,2432.1,1.9012]
[1750796018286,0.65754,2432.2,2432.1,1.9012]
[1750796018491,25.345,2432.3,2432.2,0.65754]
[1750796018788,3.2078,2432.6,2432.4,0.65748]
[1750796018987,3.86525,2432.6,2432.5,1.375]
[1750796019179,1.03355449,2432.6,2432.5,3.70856]
[1750796019580,26.00141,2432.7,2432.6,0.65743]
[1750796019886,27.03484705,2432.7,2432.6,2.07243]
[1750796020182,27.03484705,2432.7,2432.6,1.415]
[1750796020391,27.03484705,2432.7,2432.6,1.375]
[1750796023290,27.03484705,2432.7,2432.6,1.475]
[1750796024681,32.86284705,2432.7,2432.6,1.475]
[1750796024981,32.20543705,2432.7,2432.6,2.13243]
[1750796025381,32.86284705,2432.7,2432.6,2.13243]
[1750796026383,32.20543705,2432.7,2432.6,1.475]
[1750796027192,32.86284705,2432.7,2432.6,1.475]
[1750796027791,26.37743705,2432.7,2432.6,2.13243]
[1750796027988,26.37743705,2432.7,2432.6,1.475]
[1750796028189,27.03484705,2432.7,2432.6,1.475]
[1750796029093,27.09859855,2432.7,2432.6,1.475]
[1750796029389,0.65734,2433.0,2432.9,0.65734]
[1750796029591,0.65731,2433.1,2433.0,0.65731]
[1750796029787,0.65731,2433.1,2433.0,2.99221]
[1750796030090,0.65729,2433.2,2433.1,0.65729]
[1750796030295,25.99129,2433.2,2433.1,1.99849]
[1750796030590,0.65729,2433.2,2433.1,1.3412]
[1750796030791,0.65729,2433.2,2433.1,1.9985]
[1750796030986,1.69082985,2433.2,2433.1,1.3412]
[1750796032891,1.69082985,2433.2,2433.1,1.9985]
[1750796033092,0.65729,2433.2,2433.1,1.9985]
[1750796035699,1.69025227,2433.2,2433.1,1.3412]
[1750796037699,1.03296227,2433.2,2432.5,3.2078]
[1750796037895,0.65739,2432.8,2432.7,1.7326]
[1750796038198,0.65738,2432.8,2432.7,5.4304]
[1750796039696,0.65738,2432.8,2432.7,4.773]
[1750796039990,25.324,2432.9,2432.7,4.773]
[1750796040197,25.98137,2432.9,2432.8,2.07548]
[1750796040399,25.98137,2432.9,2432.8,2.8081]
[1750796040996,33.64527428,2432.9,2432.8,1.39]
[1750796041495,34.96147428,2432.9,2432.8,1.39]
[1750796042598,33.62727428,2432.9,2432.8,1.39]
[1750796043903,8.30727428,2432.9,2432.8,1.39]
[1750796044202,33.62627428,2432.9,2432.8,1.39]
[1750796044597,33.62627428,2432.9,2432.8,2.5601]
[1750796044800,33.62627428,2432.9,2432.8,3.9307]
[1750796045901,32.96890428,2432.9,2432.8,3.9307]
[1750796046103,27.00925428,2432.9,2432.8,3.9307]
[1750796047002,1.69025428,2432.9,2432.8,3.9307]
[1750796048304,1.75400578,2432.9,2432.8,3.9307]
[1750796048903,1.09665578,2432.9,2432.8,7.79588]
[1750796049105,0.0637515,2432.9,2432.8,7.79588]
[1750796049302,0.6573,2433.2,2432.8,18.7555]
[1750796049502,4.09610238,2433.6,2433.1,3.2078]
[1750796049503,6.617,2433.6,2433.1,3.2078]
[1750796049702,1.69130033,2433.5,2433.4,0.65721]
[1750796049910,1.69130033,2433.5,2433.4,1.27721]
[1750796050411,1.69130033,2433.5,2433.4,0.62]
[1750796052813,1.69130033,2433.5,2433.4,1.27722]
[1750796052814,1.03409033,2433.5,2433.4,1.27722]
[1750796053106,0.65717,2433.6,2433.4,1.27722]
[1750796053307,0.65719,2433.5,2433.4,1.27722]
[1750796053808,28.5218,2433.7,2433.5,0.65719]
[1750796053809,0.65718,2433.6,2433.5,0.65719]
[1750796054009,0.65711,2433.8,2433.5,7.10458632]
[1750796054309,0.65714,2433.7,2433.6,0.65715]
[1750796054502,0.65712,2433.8,2433.7,0.65714]
[1750796054702,0.65712,2433.8,2433.7,2.33714]
[1750796055219,0.65712,2433.8,2433.7,1.68]
[1750796056021,1.68915381,2433.8,2433.7,1.68]
[1750796057201,0.65712,2433.8,2433.7,1.68]
[1750796057410,0.65714,2433.7,2433.6,0.65715]
[1750796057615,0.65713,2433.8,2433.6,2.91715]
[1750796058016,0.65714,2433.7,2433.6,2.91715]
[1750796058209,0.65714,2433.7,2433.6,2.26]
[1750796058610,0.65714,2433.7,2433.6,2.91716]
[1750796059218,0.65713,2433.8,2433.7,0.65714]
[1750796059412,0.65713,2433.8,2433.7,2.18714]
[1750796061916,25.9641,2433.9,2433.8,0.65711]
[1750796062122,26.99530175,2433.9,2433.8,0.65]
[1750796062605,26.99530175,2433.9,2433.8,1.30711]
[1750796062808,25.9641,2433.9,2433.8,1.30711]